Cogmind - Beta 16 @@@ ROGUE MODE // 2025.11.08 @ 18:12:31 Player: FrigidRock Result: Destroyed by P-80 Master with Gamma Rifle Performance ------------- Evolutions (7) 3500 Regions Visited (25) 5000 Robots Destroyed (246) 1230 Value Destroyed (10056) 10056 Prototype IDs (36) 720 Alien Tech Used (0) 0 Bonus (7196) 7196 TOTAL SCORE: 27702 Bonus ------- High Alert Combat Kills 945 Follower Combat Kills 4094 Awakened Behemoth Slayer 1000 Network Hubs Disabled 400 Met Data Miner 300 Met Imprinter 300 Was Imprinted 300 Built Enhanced Grunts 300 A7 Reached Mainframe 300 Friendly Fire -743 Cogmind --------- Core Integrity 0/1300 Matter 122/300 Energy 92/100 System Corruption 41% Temperature Cool (0) Movement Flying (45) Location -3/Research Parts ------- > --- POWER (2) -------- (None) > --- PROPULSION (8) --- Impulse Thruster Array > --- UTILITY (8) ------ Experimental Signal Interpreter Advanced Target Analyzer > --- WEAPON (3) ------- (None) > --- INVENTORY (5) ---- Medium Storage Unit Advanced System Shield Dirty Datajack (12) Advanced Remote Datajack Improved Plasma Cutter Peak State ------------ > --- POWER ------------ Antimatter Reactor Light Particle Reactor > --- PROPULSION ------- Antigrav System Antigrav System Antigrav System Gyrokinetic Inverter Cooled Gravmag System Improved Antigrav System Improved Antigrav System Improved Antigrav System > --- UTILITY ---------- Advanced Heat Sink Medium Storage Unit Long-range Sensor Array Experimental Signal Interpreter Improved Reaction Control System Improved Remote Force Field Advanced Hacking Suite Advanced Hacking Suite > --- WEAPON ----------- Helical Railgun Helical Railgun Ionic Axe > --- INVENTORY -------- Micro Antimatter Reactor Advanced Heat Sink Particle Charger Advanced ECM Suite Advanced System Shield Hardcell Cannon Hellfire Missile Launcher Dirty Datajack Advanced Remote Datajack Improved Plasma Cutter [Rating: 143] Favorites ----------- Power Deuterium Engine Engine Deuterium Engine Power Core Nuclear Core Reactor Zionite Light DM Reactor Propulsion Carbon-fiber Leg Treads Light Treads Leg Carbon-fiber Leg Wheel Wheel Hover Unit Antigrav System Flight Unit Q-thruster Utility High-capacity Storage Unit Device Structural Scanner Storage High-capacity Storage Unit Processor Improved Targeting Computer Hackware Hacking Suite Protection Experimental Utility Shielding Weapon Heavy Assault Rifle Energy Gun Gatling Laser Energy Cannon Compact Ion Cannon Ballistic Gun Heavy Assault Rifle Ballistic Cannon Heavy Hardcell Cannon Launcher Missile Launcher Special Weapon Mining Laser Impact Weapon Makeshift Hammer Slashing Weapon Great Axe Piercing Weapon Kinetic Spear Special Melee Weapon Dirty Datajack Build | -11 -10 -10 -10 -8 -7 -7 -7 -7 -6 -6 -6 -6 -6 -6 -6 -5 -5 -5 -5 -5 -5 -4 -4 -4 -3 ------- Run | Yrd Mat Min Sub Mat Fac Low Low Zio Pro Fac Was Fac Low Low Dat Pro Fac Ext Cet Arc Hub Fac Was Fac Res Slots Evolved 14 | . . . . 4 2 . . . . 2 . . . . . . 2 . . . . 2 . . 2 Power 1 | . . . . . . . . . . 1 . . . . . . . . . . . . . . . Propulsion 6 | . . . . 2 . . . . . 1 . . . . . . 1 . . . . 1 . . 1 Utility 6 | . . . . 2 2 . . . . . . . . . . . 1 . . . . . . . 1 Weapon 1 | . . . . . . . . . . . . . . . . . . . . . . 1 . . . Parts Attached 273 | 7 7 5 10 34 9 5 1 4 6 10 2 31 4 3 . . 4 17 4 1 7 19 1 35 47 Power 46 | 1 1 . 2 6 1 1 . 1 . 2 . 4 . 1 . . . 5 1 . 1 2 . 7 10 Engine 17 | 1 1 . 2 3 1 1 . 1 . 2 . 2 . 1 . . . . . . . . . 1 1 Core 13 | . . . . 3 . . . . . . . 1 . . . . . 5 . . . . . 4 . Reactor 16 | . . . . . . . . . . . . 1 . . . . . . 1 . 1 2 . 2 9 Propulsion 91 | 2 2 1 2 8 3 3 1 1 5 4 . 14 . . . . . 4 1 . 2 7 1 14 16 Treads 10 | . 2 1 . . . 1 1 1 3 . . . . . . . . . . . 1 . . . . Leg 45 | 2 . . . 7 3 . . . 2 . . 14 . . . . . 4 1 . 1 7 1 2 1 Wheel 11 | . . . 2 1 . 2 . . . 3 . . . . . . . . . . . . . 1 2 Hover 23 | . . . . . . . . . . 1 . . . . . . . . . . . . . 11 11 Flight 2 | . . . . . . . . . . . . . . . . . . . . . . . . . 2 Utility 79 | 2 2 3 1 9 3 1 . 2 . 3 1 7 3 1 . . 3 3 1 1 3 6 . 10 14 Device 41 | 1 . 2 . 4 . 1 . 1 . 2 . 4 2 . . . 1 1 . 1 1 3 . 5 12 Storage 6 | 1 . 1 . . . . . . . . . 1 . . . . . 1 . . . . . 2 . Processor 13 | . 1 . . 4 . . . . . . 1 1 1 . . . . . . . 1 2 . . 2 Hackware 6 | . . . . 1 1 . . . . . . . . . . . . . . . 1 . . 3 . Protection 13 | . 1 . 1 . 2 . . 1 . 1 . 1 . 1 . . 2 1 1 . . 1 . . . Artifact . | . . . . . . . . . . . . . . . . . . . . . . . . . . Weapon 57 | 2 2 1 5 11 2 . . . 1 1 1 6 1 1 . . 1 5 1 . 1 4 . 4 7 Energy Gun 15 | 1 . . 1 4 1 . . . . . . 2 . 1 . . 1 . . . . 1 . 2 1 Energy Cannon 8 | . . . . . . . . . . . . 2 1 . . . . 1 . . . 2 . . 2 Ballistic Gun 16 | 1 2 . 3 4 . . . . . 1 . 1 . . . . . 2 . . . . . . 2 Ballistic Cannon 5 | . . . . 1 . . . . . . 1 . . . . . . . . . . 1 . 1 1 Launcher 4 | . . . 1 1 . . . . . . . 1 . . . . . . . . . . . . 1 Special Weapon 3 | . . 1 . . . . . . . . . . . . . . . . 1 . 1 . . . . Impact Weapon 1 | . . . . . . . . . 1 . . . . . . . . . . . . . . . . Slashing Weapon 2 | . . . . . 1 . . . . . . . . . . . . . . . . . . 1 . Piercing Weapon 2 | . . . . . . . . . . . . . . . . . . 2 . . . . . . . Special Melee Weapon 1 | . . . . 1 . . . . . . . . . . . . . . . . . . . . . Unidentified Prototypes 24 | . . . . 1 1 . . . . 3 1 6 . . . . 1 1 1 . . . 1 4 4 Corrupted Parts 6 | . . . . . . . . . . . . . . . . . . . . . 2 . 1 3 . System Corruption 28 | . . . . . . . . . . . . . . . . . . . . . 13 . 5 10 . Parts Lost 99 | . . 1 4 6 6 7 . . 6 1 1 2 2 1 . . . . . . 2 10 5 7 38 Power 14 | . . . 2 1 1 1 . . . . . . . . . . . . . . . 2 1 1 5 Propulsion 48 | . . . 2 3 4 4 . . 3 . 1 . . . . . . . . . . 6 2 4 19 Utility 26 | . . 1 . 1 1 1 . . 1 1 . 2 2 . . . . . . . 2 . 2 2 10 Weapon 11 | . . . . 1 . 1 . . 2 . . . . 1 . . . . . . . 2 . . 4 Highest Loss Streak 15 | . . 1 1 2 2 6 . . 2 1 1 1 2 1 . . . . . . 1 5 4 7 15 To Critical Strikes 1 | . . . . . . . . . . . . . . . . . . . . . . . . . 1 Average Backups 14 | 1 4 6 19 18 17 13 14 14 12 14 16 15 15 15 16 16 16 17 17 17 17 14 14 5 8 Power 2 | 1 1 1 4 2 5 3 3 2 2 2 2 2 2 2 2 2 1 1 2 2 1 . . . . Propulsion 1 | . 1 1 4 4 3 . . 1 1 1 3 2 2 2 2 2 1 1 1 1 . . . . . Utility 4 | . . 1 4 5 4 5 6 3 2 2 3 2 2 3 4 4 4 4 6 7 8 8 8 2 2 Weapon 4 | . 1 2 3 3 3 3 2 4 5 5 6 6 7 6 6 6 6 7 5 5 3 2 2 . 1 Tool/Special . | . . . . . . . . . . . . . . . . . . . . . . . . . . Unused Backups 44 | . 6 . 3 9 . . 1 5 1 . . 3 . . . . . 5 3 . . . 4 1 3 Power 7 | . 2 . . 2 . . 1 . . . . . . . . . . . 2 . . . . . . Propulsion 11 | . 2 . 3 4 . . . 1 . . . . . . . . . 1 . . . . . . . Utility 17 | . 1 . . 2 . . . 4 . . . . . . . . . 3 1 . . . 4 1 1 Weapon 4 | . 1 . . . . . . . . . . 3 . . . . . . . . . . . . . Tool/Special 5 | . . . . 1 . . . . 1 . . . . . . . . 1 . . . . . . 2 Average Slot Usage (%) 92 | . 98 98 99 98 96 85 92 100 97 77 79 92 88 92 81 93 85 88 92 94 88 73 66 74 84 Engine 6 | . 14 14 13 2 3 6 7 7 7 10 13 8 6 6 6 6 8 3 . . . . . . . Core 1 | . . . . 6 3 . . . . . . . . . . . . 6 7 5 1 . . 4 . Reactor 1 | . . . . . . . . . . . . 2 6 6 6 6 2 . 3 5 5 6 7 1 6 Treads 7 | . 19 28 21 . . 2 10 19 14 12 . . . . . . . . . . . . . . . Leg 15 | . 8 . . 34 29 7 7 2 13 2 . 23 26 26 26 26 22 23 29 29 28 19 20 4 1 Wheel 2 | . . . 6 . . 5 7 7 2 10 15 3 . . . . . . . . . . . . . Hover 2 | . . . . . . . . . . . 6 1 . . . . . . . . . . . 22 28 Device 14 | . 6 9 13 10 12 14 15 16 22 9 20 23 20 18 13 13 11 11 11 11 16 10 7 12 16 Storage 6 | . 7 2 14 9 7 7 7 7 7 6 6 6 6 6 6 6 5 5 5 5 5 5 3 2 3 Processor 7 | . 6 3 . 13 7 7 7 7 7 4 . 3 6 13 13 13 11 11 11 11 10 14 15 9 4 Hackware 3 | . . . . 2 8 15 15 11 . . . . . . . . . . . . . . . 1 7 Protection 4 | . 7 11 . . 6 . . 1 7 7 8 3 1 1 6 6 8 11 11 11 5 4 3 3 . Energy Gun 3 | . 6 . 2 9 5 6 . 1 2 1 . 2 5 5 . 6 4 . . . . 2 . 5 1 Energy Cannon 2 | . . . . . . . . . . . . 6 4 6 . 6 5 7 7 11 . 1 5 . 1 Ballistic Gun 5 | . 21 24 21 7 . . . 1 . 3 2 . . . . . . 2 1 . 10 2 . . 2 Launcher 1 | . . . 3 . . 1 4 5 4 . . . . . . . . . . . . 1 . . . Slashing Weapon 1 | . . . . . 2 6 7 5 . . . . . . . . . . . . . . . 2 2 Peak Build Rating 143 | 7 11 12 15 44 48 42 42 44 44 62 73 81 81 79 76 76 86 93 97 98 97 108 108 116 143 Average Rating 55 | 5 9 10 11 39 44 35 38 42 40 40 67 71 76 78 65 76 80 88 93 97 90 81 74 85 112 On Entrance 56 | . 7 11 10 15 44 39 34 42 44 38 62 65 81 79 76 76 76 83 88 97 98 81 108 25 97 Avg Prop Armor Cover (%) 13 | . . . 11 8 . 15 22 19 11 10 1 6 . . . . . . . . . . . 9 7 Naked Turns . | . . . . . . . . . . . . . . . . . . . . . . . . . . Heaviest Build 114 | 13 19 50 54 58 67 63 61 70 72 85 97 96 83 74 73 77 90 100 104 104 104 114 111 60 76 Greatest Support 120 | 20 40 40 40 72 68 65 10 78 78 60 56 93 81 81 81 81 91 106 106 106 106 120 120 69 94 Greatest Overweight (x) 15 | . . 1 5 4 1 6 6 6 7 4 2 3 1 . . . . 1 . . 1 15 1 1 3 Average Overweight (x) 1 | . . . 1 . . 3 5 4 2 1 1 . . . . . . . . . . . . . . Largest Inventory Capacity 25 | 8 8 20 20 20 20 20 20 20 20 20 20 20 20 20 20 20 20 20 20 20 20 20 20 25 10 Average Capacity 17 | 6 6 7 20 20 20 20 20 20 20 20 20 20 20 20 20 20 20 20 20 20 20 20 15 7 9 Most Carried 20 | 2 8 20 20 20 19 20 20 20 20 20 20 20 20 20 20 20 20 20 20 20 20 19 19 10 10 Average Carried 16 | . 4 6 19 18 17 17 17 19 19 19 19 19 19 19 20 20 19 19 19 19 19 15 14 5 8 Final Capacity 20 | 8 5 20 20 20 20 20 20 20 20 20 20 20 20 20 20 20 20 20 20 20 20 20 5 5 5 Final Carried 20 | 2 5 20 17 19 16 17 20 19 19 19 20 20 20 20 20 20 20 20 19 20 20 17 5 4 5 Class Distribution -------------------- 43% | Mutant 20% | Scavenger-Mutant 16% | Hacker-Mutant 10% | Commander-Mutant 4% | Messiah-Mutant Dominant Class ---------------- Mutant | -10/Materials Mutant | -10/Mines Mutant | -10/Subcaves Mutant | -8/Materials Mutant | -7/Factory Hacker-Mutant | -7/Lower Caves Hacker-Mutant | -7/Lower Caves Hacker-Mutant | -7/Zion Mutant | -6/Proximity Caves Mutant | -6/Factory Scavenger-Mutant | -6/Waste Scavenger-Mutant | -6/Factory Mutant | -6/Lower Caves Mutant | -6/Lower Caves Scavenger-Mutant | -6/Data Miner Scavenger-Mutant | -5/Proximity Caves Scavenger-Mutant | -5/Factory Commander-Mutant | -5/Extension Commander-Mutant | -5/Cetus Commander-Mutant | -5/Archives Scavenger-Mutant | -5/Hub_04(d) Scavenger-Gunner | -4/Factory Scavenger-Mutant | -4/Waste Mutant | -4/Factory Scavenger-Mutant | -3/Research Resources | -11 -10 -10 -10 -8 -7 -7 -7 -7 -6 -6 -6 -6 -6 -6 -6 -5 -5 -5 -5 -5 -5 -4 -4 -4 -3 ----------- Run | Yrd Mat Min Sub Mat Fac Low Low Zio Pro Fac Was Fac Low Low Dat Pro Fac Ext Cet Arc Hub Fac Was Fac Res Matter Collected 7778 | 285 129 310 354 807 220 295 82 60 181 155 . 679 483 130 . . 230 435 146 70 440 558 116 645 968 Remotely . | . . . . . . . . . . . . . . . . . . . . . . . . . . Salvage Created 11703 | 116 239 180 366 1814 357 396 145 . 344 141 . 1223 593 119 . 116 290 1047 109 408 761 673 . 773 1493 Parts 522 | 9 20 2 25 75 18 13 7 . 14 4 . 39 21 6 . 2 15 52 6 14 28 26 . 37 89 Haulers Intercepted 7 | . 1 . . . . . . . . . . 3 . . . . . . . . 1 . . 1 1 Recyclers Shooed 8 | . . . . 2 . . . . . . . . . . . . 1 2 . . . . . 1 2 Parts Field Recycled . | . . . . . . . . . . . . . . . . . . . . . . . . . . Retrieved Matter . | . . . . . . . . . . . . . . . . . . . . . . . . . . Parts Self-Destructed 67 | . . . 19 . . 15 3 . 15 . . . 10 5 . . . . . . . . . . . Prevented 9 | . . . . . . . . . 6 . . . 1 2 . . . . . . . . . . . Parts Restored . | . . . . . . . . . . . . . . . . . . . . . . . . . . Kills | -11 -10 -10 -10 -8 -7 -7 -7 -7 -6 -6 -6 -6 -6 -6 -6 -5 -5 -5 -5 -5 -5 -4 -4 -4 -3 ------- Run | Yrd Mat Min Sub Mat Fac Low Low Zio Pro Fac Was Fac Low Low Dat Pro Fac Ext Cet Arc Hub Fac Was Fac Res Combat Hostiles Destroyed 186 | . 9 11 12 30 10 7 4 . 5 . . 12 19 2 . 5 2 14 1 3 7 11 . 3 19 Melee 6 | . . . . . 1 . . . . . . . . . . . . . . . . . . . 5 Guns 92 | . 9 11 8 28 1 2 . . . . . 3 4 1 . . . 7 1 . 7 5 . 2 3 Cannons 24 | . . . . 1 . . . . . . . 8 . . . . 1 6 . 2 . 1 . 1 4 AOE 59 | . . . 4 . 8 5 4 . 5 . . . 15 1 . 5 . . . . . 5 . . 7 Classes Destroyed 23 | 2 4 1 1 4 1 4 1 . 1 . . 1 . . . . . 1 . . . . . 2 . Worker 17 | . 1 . . 4 1 . . . . . . 3 . . . . . . . . 2 . . 1 5 Builder 2 | . . . . . . . . . . . . 1 . . . . 1 . . . . . . . . Tunneler 5 | 3 . . . . . . . . . . . . . . . . . . . . . . . 2 . Hauler 6 | . 1 . . . . . . . . . . 3 . . . . . . . . . . . 1 1 Recycler 12 | 1 . 1 . 2 . . . . . 1 . 1 . . . . 1 . . . . 1 . 2 2 Minesweeper 3 | . . . . . . 1 . . 2 . . . . . . . . . . . . . . . . Operator 7 | . . . . 2 . . . . . . . . . . . . . 1 . 3 . . . . 1 Watcher 13 | . . . . 3 1 . . . . . . 1 . . . . . . 1 . . 1 . 1 5 Swarmer 33 | . 8 . 5 . 3 1 . . . . . . 10 . . . . 1 . . . . . . 5 Cutter 1 | . . . . . . . . . . . . . . . . . . . . . . . . 1 . Grunt 66 | . 1 . . 21 6 1 3 . 1 . . 7 6 1 . 5 . 4 . . 2 8 . . . Brawler 9 | . . . . . . 3 . . 3 . . . 2 . . . . . . . 1 . . . . Duelist 3 | . . . . . . 1 2 . . . . . . . . . . . . . . . . . . Protector 2 | . . . . . . . . . 1 . . . . . . . . . . . 1 . . . . Sentry 25 | . . . . 7 . 1 . . . . . 3 1 1 . . . 6 . 3 1 1 . . 1 Hunter 8 | . . . . 2 . . . . . . . 1 . . . . . 2 . . 1 . . . 2 Programmer 20 | . . . . . 1 . . . . . . 1 . . . . 2 . . . 1 2 . 2 11 Behemoth 1 | . . . . . . . . . . . . . . . . . . 1 . . . . . . . Cetus Guard 1 | . . . . . . . . . . . . . . . . . . . 1 . . . . . . Enhanced Grunt 1 | . . . . . . . . . . . . . . . . . . . . . 1 . . . . Subdweller 7 | . . . 7 . . . . . . . . . . . . . . . . . . . . . . Z-Courier 2 | . . . . . . . . . . . . . . . . . . . . . 1 . . 1 . Decomposer 2 | . . . . . . 2 . . . . . . . . . . . . . . . . . . . Samaritan 3 | . . . . . . . 1 . . . . . 2 . . . . . . . . . . . . Tinkerer 1 | . . . . . . 1 . . . . . . . . . . . . . . . . . . . Assembled 11 | . . 11 . . . . . . . . . . . . . . . . . . . . . . . Savage 1 | . . . . . . . . . 1 . . . . . . . . . . . . . . . . Butcher 2 | . . . . . . . . . . . . . . . . . . . . 1 1 . . . . Fireman 1 | . . . . . . . . . . . . . . . . . . . . . . . . 1 . Best Kill Streak 11 | 3 8 3 3 4 4 5 4 . 3 1 . 3 10 1 . 5 2 3 1 2 3 6 . 5 11 Combat Bots Only 10 | . 7 3 3 4 4 4 4 . 3 . . 3 10 1 . 5 2 3 1 2 3 5 . 2 8 Max Kills in Single Turn 6 | 1 1 1 3 2 3 2 2 . 4 1 . 2 6 1 . 3 1 1 1 1 2 2 . 1 4 Gunslinging . | . . . . . . . . . . . . . . . . . . . . . . . . . . Exploded 6 | . . . 3 . 3 2 2 . 3 . . . 6 1 . 3 . . . . . 2 . . 3 Melee 1 | . . . . . 1 . . . . . . . . . . . . . . . . . . . 1 Uniques/NPCs Destroyed . | . . . . . . . . . . . . . . . . . . . . . . . . . . Combat | -11 -10 -10 -10 -8 -7 -7 -7 -7 -6 -6 -6 -6 -6 -6 -6 -5 -5 -5 -5 -5 -5 -4 -4 -4 -3 -------- Run | Yrd Mat Min Sub Mat Fac Low Low Zio Pro Fac Was Fac Low Low Dat Pro Fac Ext Cet Arc Hub Fac Was Fac Res Hostile Shots Fired 1369 | . 40 41 62 124 143 54 5 . 32 6 1 95 31 37 . 7 33 126 9 . 39 100 5 69 310 Missed 427 | . 11 9 20 28 54 17 2 . 8 1 . 40 10 16 . 1 6 39 4 . 12 25 . 20 104 Hits 942 | . 29 32 42 96 89 37 3 . 24 5 1 55 21 21 . 6 27 87 5 . 27 75 5 49 206 Melee 26 | . . 6 . . 3 6 . . . . 1 . . . . . . . . . . . 5 5 . Projectile 916 | . 29 26 42 96 86 31 3 . 24 5 . 55 21 21 . 6 27 87 5 . 27 75 . 44 206 AOE 4 | . . . . . . . . . . . . . . . . . . . . . . . . 4 . Critical Strikes 61 | . . . . 8 1 . . . . 1 . 1 1 . . 1 3 3 1 . 7 6 4 5 19 Part Disruptions 1 | . . . . . . . . . . . . . . . . . . . . . . . . . 1 Damage Taken 18212 | . 239 501 736 1555 1288 903 95 . 405 116 46 830 602 207 . 158 529 1209 66 14 627 2035 211 1123 4717 Core 3176 | . 26 11 120 205 235 172 . . 49 . . 88 84 17 . . 62 127 . 14 . 384 103 164 1315 Absorbed by Shields 999 | . . . . . . . . . . . . . . . . . . 644 68 14 197 . . . 76 Redirected to Shielding 283 | . . . . . . . . . . . . 75 48 . . . . 60 . . . . . 100 . Ignored by Resistances 12 | . . . . . . . . . . . . . . . . . . . . . . . . . 12 Regen/Repaired (Parts) 53 | . . . . . . . . . . . . . . . . . . . . . . . . . 53 Core Remaining (%) 61 | 100 . . 37 62 . . . . 34 . . . . . . 77 . . . . 79 . . 43 . Volleys Fired 579 | 5 23 44 33 94 8 17 4 . 14 5 . 70 24 8 . 5 11 51 12 16 31 31 3 27 43 Largest 3 | 2 2 2 2 2 2 2 1 . 1 2 . 2 2 2 . 1 2 2 2 2 2 3 1 3 2 Hottest 227 | 70 70 123 78 160 160 108 36 . 55 56 . 180 150 150 . 90 180 188 188 188 70 218 88 227 93 Shots Fired 1015 | 10 46 84 60 187 11 21 4 . 14 10 . 116 36 15 . 5 22 95 23 32 62 41 3 44 74 Gun 681 | 10 46 78 54 176 6 8 . . 7 10 . 33 15 7 . . 7 44 18 . 62 31 . 24 45 Cannon 272 | . . . . 10 . . . . . . . 83 15 8 . 3 15 51 5 32 . 6 3 18 23 Launcher 54 | . . . 6 1 5 13 4 . 7 . . . 6 . . 2 . . . . . 4 . . 6 Special 8 | . . 6 . . . . . . . . . . . . . . . . . . . . . 2 . Kinetic 536 | 5 30 78 50 101 . 4 . . . 10 . 24 . . . . . 34 18 . 62 34 . 18 68 Thermal 341 | 5 16 6 4 85 6 4 . . . . . 59 15 8 . 3 15 51 5 32 . 1 . 26 . Explosive 54 | . . . 6 1 5 13 4 . 7 . . . 6 . . 2 . . . . . 4 . . 6 Electromagnetic 84 | . . . . . . . . . 7 . . 33 15 7 . . 7 10 . . . 2 3 . . Robot Hit Streak 34 | 5 9 8 21 34 7 17 19 . 12 5 . 9 3 10 . 2 3 10 13 5 8 8 4 5 6 Robot Miss Streak 10 | 1 5 5 3 6 2 1 1 . . 2 . 4 10 1 . 6 2 3 3 2 5 8 . 6 4 Penetration Max 3 | . . . . 1 . . . . . 1 . . . . . . . 3 1 . 1 1 . . 1 Secondary Targets 10 | . . 1 . 3 . 1 . . . . . . . . . . . 2 . . . 2 . . 1 Max Gunslinging Chain 1 | . . 1 . 1 . 1 . . . . . . . . . . . 1 . . . 1 . . 1 Shots Hit Robots 694 | 6 23 45 41 135 14 22 4 . 13 8 . 64 17 12 . 2 9 72 14 19 39 33 3 34 65 Core Hits 577 | 5 12 22 20 92 20 27 11 . 19 1 . 31 66 2 . 27 4 42 7 13 31 60 . 18 47 Critical Kills 29 | . 1 1 . 2 . . . . . . . 1 . . . . 1 5 1 1 10 4 . . 2 Critical Parts Destroyed 23 | . . . . . . . . . 1 . . . . . . . . 5 1 . 8 8 . . . Critical Strikes 72 | . 2 1 . 5 1 . . . 1 . . 3 . . . . 2 10 3 1 18 12 . 6 7 Burn 5 | . 1 . . 3 . . . . . . . . . . . . . . . . . . . 1 . Meltdown 3 | . . . . . . . . . . . . 1 . . . . 1 . . 1 . . . . . Destroy 49 | . 1 1 . 2 . . . . . . . . . . . . . 10 3 . 18 12 . . 2 Blast 7 | . . . . . . . . . . . . 2 . . . . . . . . . . . 4 1 Corrupt 1 | . . . . . . . . . . . . . . . . . 1 . . . . . . . . Smash 1 | . . . . . . . . . 1 . . . . . . . . . . . . . . . . Sever 6 | . . . . . 1 . . . . . . . . . . . . . . . . . . 1 4 Melee Attacks 134 | . . . . . 20 8 4 1 2 2 . . . . . . . 4 . . . . . 23 70 Impact 3 | . . . . . . . . . 1 2 . . . . . . . . . . . . . . . Slashing 119 | . . . . . 18 8 4 1 1 . . . . . . . . . . . . . . 17 70 Piercing 12 | . . . . . 2 . . . . . . . . . . . . 4 . . . . . 6 . Sneak Attacks 24 | . . . . . 1 4 1 . 2 1 . . . . . . . . . . . . . 10 5 Combat Hostiles 1 | . . . . . . . . . . . . . . . . . . . . . . . . . 1 Follow-up Attacks . | . . . . . . . . . . . . . . . . . . . . . . . . . . Damage Inflicted 27593 | 71 339 664 846 3287 968 1820 568 . 1274 314 . 2731 2003 321 . 832 272 1764 158 682 685 1707 9 1979 4299 Guns 8735 | 71 339 640 638 3152 162 163 . . 148 164 . 524 266 130 . . 92 470 126 . 414 245 . 258 733 Cannons 5336 | . . . . 135 . . . . . . . 1932 85 138 . . 180 1161 32 682 . 134 9 461 387 Explosions 8946 | . . . 208 . 521 1086 475 . 980 . . 227 1652 53 . 832 . . . . 271 1328 . . 1313 Melee 4398 | . . . . . 285 571 93 . 146 150 . . . . . . . 64 . . . . . 1249 1840 Ramming 154 | . . . . . . . . . . . . 48 . . . . . 69 . . . . . 11 26 Kinetic 6663 | 33 213 640 588 1379 . 53 . . . 164 . 844 . . . . . 315 126 . 414 313 . 461 1120 Thermal 6322 | 38 126 24 50 1908 162 110 . . . . . 1315 85 191 . . 180 1161 32 682 . . . 258 . Explosive 8395 | . . . 208 . 521 1086 475 . 980 . . . 1652 . . 832 . . . . . 1328 . . 1313 Electromagnetic 1661 | . . . . . . . . . 148 . . 524 266 130 . . 92 155 . . 271 66 9 . . Impact 216 | . . . . . . . . . 66 150 . . . . . . . . . . . . . . . Slashing 4106 | . . . . . 281 571 93 . 80 . . . . . . . . . . . . . . 1241 1840 Piercing 76 | . . . . . 4 . . . . . . . . . . . . 64 . . . . . 8 . Highest Corruption 41 | . . 1 1 . . . . . . 1 9 9 4 4 4 4 . 2 2 2 20 2 21 31 41 Average Corruption 4 | . . 1 1 . . . . . . 1 7 4 4 4 4 4 . 2 2 1 4 1 9 23 11 Corruption Purged 7 | . . . . . . . . . . . . 5 . . . . . . . 2 . . . . . Corruption Blocked . | . . . . . . . . . . . . . . . . . . . . . . . . . . Effects 221 | . . 7 10 . . . . . . 2 4 34 23 22 5 18 . 16 2 1 1 3 6 40 27 Message Errors 45 | . . 1 2 . . . . . . . 2 14 7 2 2 2 . 3 . . . 1 3 2 4 Matter Fused 52 | . . . . . . . . . . 1 1 8 6 11 1 3 . 4 . 1 . 1 . 8 7 Heat Flow Errors 27 | . . 1 2 . . . . . . 1 . 7 2 2 . 2 . . . . 1 . . 6 3 Energy Discharges 37 | . . 3 3 . . . . . . . 1 . 7 2 . 6 . 4 1 . . . 1 7 2 Parts Rejected 3 | . . . . . . . . . . . . . . . . . . . . . . 1 1 . 1 Parts Fused 2 | . . . . . . . . . . . . 1 . . . . . . . . . . . 1 . Data Loss (minor) 26 | . . 1 2 . . . . . . . . 3 . 5 1 4 . 2 . . . . 1 5 2 Data Loss (major) 5 | . . . . . . . . . . . . 1 . . . . . 1 . . . . . 3 . Misfires 5 | . . 1 . . . . . . . . . . 1 . . . . 2 . . . . . 1 . Alerts 5 | . . . 1 . . . . . . . . . . . 1 1 . . . . . . . 1 1 Misdirections 10 | . . . . . . . . . . . . . . . . . . . . . . . . 3 7 Weapon Failures 4 | . . . . . . . . . . . . . . . . . . . 1 . . . . 3 . Overload Shots . | . . . . . . . . . . . . . . . . . . . . . . . . . . Overflow Damage 876 | . . . 30 . . 118 . . 108 . . 113 9 . . . . . . 22 . 30 . 220 226 Projectiles 178 | . . . . . . . . . . . . 109 . . . . . . . 22 . . . 47 . Explosions 155 | . . . 30 . . 19 . . 2 . . 4 9 . . . . . . . . 30 . . 61 Melee 543 | . . . . . . 99 . . 106 . . . . . . . . . . . . . . 173 165 Knockbacks 7 | . . . . 2 . . . . . 1 . . . . . . . . . . . . . 2 2 Impact 3 | . . . . . . . . . . 1 . . . . . . . . . . . . . 1 1 Kinetic 4 | . . . . 2 . . . . . . . . . . . . . . . . . . . 1 1 Secondary . | . . . . . . . . . . . . . . . . . . . . . . . . . . Self-Inflicted Damage 1066 | . . . . . . 135 42 . . . . . 157 . . 44 . . . . 91 508 . 5 84 Shots 41 | . . . . . . 5 1 . . . . . 7 . . 2 . . . . 1 24 . . 1 Rammed 10 | . . . . . . . . . . . . . . . . . . . . . . . . 1 9 Targets Rammed 14 | . . . . . . . . . . . . 2 . . . . . 2 . . . . . 1 9 Kicked 4 | . . . . . . . . . . . . 2 . . . . . 2 . . . . . . . Crushed . | . . . . . . . . . . . . . . . . . . . . . . . . . . Highest Temperature 377 | 27 135 119 153 354 33 24 . . 57 267 . 294 196 168 . 243 153 290 84 192 215 93 12 377 232 Average Temperature 83 | 12 64 38 65 82 22 8 . . 22 216 . 116 91 77 . 96 45 78 47 65 134 38 6 118 59 Received Heat Transfer 3053 | . 18 60 78 819 420 168 9 . 132 63 . 237 99 60 . 63 90 180 . . 24 468 . 20 45 Effects 5 | . . . . . . . . . . . . . . . . . . . . . . . . 5 . Shutdowns 1 | . . . . . . . . . . . . . . . . . . . . . . . . 1 . Energy Bleed 1 | . . . . . . . . . . . . . . . . . . . . . . . . 1 . Interference 3 | . . . . . . . . . . . . . . . . . . . . . . . . 3 . Siege Activations . | . . . . . . . . . . . . . . . . . . . . . . . . . . Martial Activations . | . . . . . . . . . . . . . . . . . . . . . . . . . . Shielding Activations . | . . . . . . . . . . . . . . . . . . . . . . . . . . Robots Disrupted . | . . . . . . . . . . . . . . . . . . . . . . . . . . Combat Hostiles . | . . . . . . . . . . . . . . . . . . . . . . . . . . Robots Corrupted 1 | . . . . . . . . . . . . . . . . . . . . . 1 . . . . Combat Hostiles . | . . . . . . . . . . . . . . . . . . . . . . . . . . Parts Fried 9 | . . . . . . . . . . . . 2 . . . . . 4 1 . 2 . . . . Impact Corruptions 5 | . . . . . . . . . 5 . . . . . . . . . . . . . . . . Robots Melted 4 | . . . . 1 . . . . . . . 1 . . . . 1 . . 1 . . . . . Combat Hostiles 4 | . . . . 1 . . . . . . . 1 . . . . 1 . . 1 . . . . . Parts Melted 30 | . . . . 12 1 . . . . . . 4 . . . . 1 5 . 3 4 . . . . Heat Transferred 11279 | 111 444 50 111 4543 300 250 . . . . . 1664 111 235 . . 224 1638 50 1050 . . . 498 . Parts Sabotaged . | . . . . . . . . . . . . . . . . . . . . . . . . . . Parts Stolen . | . . . . . . . . . . . . . . . . . . . . . . . . . . Parts Stripped . | . . . . . . . . . . . . . . . . . . . . . . . . . . Power Chain Reactions 1 | . . . . . . . . . . . . . . 1 . . . . . . . . . . . Alert | -11 -10 -10 -10 -8 -7 -7 -7 -7 -6 -6 -6 -6 -6 -6 -6 -5 -5 -5 -5 -5 -5 -4 -4 -4 -3 ------- Run | Yrd Mat Min Sub Mat Fac Low Low Zio Pro Fac Was Fac Low Low Dat Pro Fac Ext Cet Arc Hub Fac Was Fac Res Maximum Alert Level 5 | . . . . 1 1 . . . . . . 3 . . . . . 3 2 1 5 3 1 1 1 Low Security (%) 65 | 100 100 100 . 69 89 . . . . 100 100 25 . . . . 100 55 . 42 16 . 23 84 92 Level 1 15 | . . . . 30 10 . . . . . . 12 . . . . . 26 . 57 1 . 76 15 7 Level 2 6 | . . . . . . . . . . . . 14 . . . . . 13 100 . 9 . . . . Level 3 10 | . . . . . . . . . . . . 48 . . . . . 5 . . 37 100 . . . Level 4 1 | . . . . . . . . . . . . . . . . . . . . . 33 . . . . Level 5 . | . . . . . . . . . . . . . . . . . . . . . 1 . . . . High Security . | . . . . . . . . . . . . . . . . . . . . . . . . . . Max Security . | . . . . . . . . . . . . . . . . . . . . . . . . . . Peak Influence 1685 | 15 186 60 . 389 239 . . . . 93 25 980 . . . . 47 873 562 288 1685 1020 318 305 298 Initial 815 | . . 60 . . 170 . . . . 56 25 . . . . . 33 16 486 166 37 815 318 124 127 Average 240 | 2 117 3 . 170 115 . . . . 34 7 556 . . . . 18 215 492 207 875 948 250 81 83 Influence Increases 11632 | 20 276 25 200 1053 503 283 135 . 533 121 . 1526 472 101 . 110 135 1436 197 243 2201 409 . 645 1008 Destroy 0b10 Robot/C 5360 | . 180 . 120 600 200 200 100 . 320 60 . 560 420 80 . 100 40 680 80 80 560 220 . 320 440 Destroy 0b10 Robot/NC 460 | 20 10 5 . 55 10 15 . . 15 5 . 55 . . . . 10 20 5 15 75 10 . 65 70 Destroy Leader 934 | . 32 . 10 166 42 10 20 . 20 10 . 138 30 10 . 10 10 74 . . 148 42 . 50 112 Allied During Kill 2187 | . . . 10 . . 13 15 . 178 33 . 297 22 11 . . . 581 85 95 719 . . 105 23 Successful Hack 117 | . 7 . . 11 10 . . . . 12 . 36 . . . . 14 . . . . . . 12 15 Select Force Hacks 30 | . . . . 30 . . . . . . . . . . . . . . . . . . . . . Disable Machine 585 | . . 15 . 30 . . . . . . . 120 . . . . 15 . 15 45 240 45 . 45 15 Anti-Garrison Action 400 | . . . . . . . . . . . . 200 . . . . . . . . 200 . . . . Destroy Structure 764 | . 2 5 . 11 31 . . . . 1 . 60 . . . . 16 36 12 8 244 92 . 48 198 Partial Spotted 90 | . . . . 30 . . . . . . . . . . . . . . . . 15 . . . 45 Lose Combat Pursuer 705 | . 45 . 60 120 210 45 . . . . . 60 . . . . 30 45 . . . . . . 90 Influence Decreases 11405 | 20 120 181 200 678 639 522 134 1 443 138 73 620 724 561 194 56 155 601 649 553 643 1164 732 580 1024 Entered New Map 3483 | . . 96 . . 205 89 . 1 . 34 48 . 336 125 194 . 21 18 383 251 70 850 592 54 116 Time Decay 6126 | 20 120 85 167 628 374 383 134 . 353 102 15 448 368 386 . 56 134 463 206 262 286 214 70 314 538 Lost Part 827 | . . . 5 50 60 50 . . 50 . 10 12 20 10 . . . . . . 20 100 50 70 320 Lost Ally 969 | . . . 28 . . . . . 40 2 . 160 . 40 . . . 120 60 40 267 . 20 142 50 Squads Dispatched 51 | . 2 . . 5 7 . . . 1 1 . 9 . . . . 1 3 . . 8 2 . 5 7 Investigation 9 | . . . . 1 1 . . . . 1 . 1 . . . . . 3 . . 1 . . . 1 Extermination 14 | . . . . . 2 . . . . . . 3 . . . . 1 . . . 1 . . 2 5 Reinforcement 20 | . 2 . . 4 2 . . . . . . 3 . . . . . . . . 3 2 . 3 1 Assault 7 | . . . . . 2 . . . 1 . . 1 . . . . . . . . 3 . . . . Garrison 1 | . . . . . . . . . . . . 1 . . . . . . . . . . . . . Intercept . | . . . . . . . . . . . . . . . . . . . . . . . . . . Searches Triggered . | . . . . . . . . . . . . . . . . . . . . . . . . . . Data Miner Redirects 2 | . . . . . . . . . . . . . . . . . . 1 . . 1 . . . . Construction Impeded 3 | . . . . . . . . . . . . 1 . . . . . . . . . 1 . 1 . Haulers Reinforced 2 | . . . . . . . . . . . . 1 . . . . . . . . 1 . . . . Active Scanning Responses . | . . . . . . . . . . . . . . . . . . . . . . . . . . Cargo Convoy Interrupts . | . . . . . . . . . . . . . . . . . . . . . . . . . . Stealth | -11 -10 -10 -10 -8 -7 -7 -7 -7 -6 -6 -6 -6 -6 -6 -6 -5 -5 -5 -5 -5 -5 -4 -4 -4 -3 --------- Run | Yrd Mat Min Sub Mat Fac Low Low Zio Pro Fac Was Fac Low Low Dat Pro Fac Ext Cet Arc Hub Fac Was Fac Res Distress Signals 16 | . 1 . . 5 2 . . . . . . 1 . . . . 1 1 1 . . . . 1 3 Communications Jammed . | . . . . . . . . . . . . . . . . . . . . . . . . . . Distress Signals . | . . . . . . . . . . . . . . . . . . . . . . . . . . Times Spotted 419 | . 13 19 16 55 32 17 4 . 16 3 6 33 14 3 . 5 11 36 6 12 28 12 6 26 46 Peak Tracking Total 9 | . 3 5 2 5 9 7 4 . 5 3 6 5 9 3 . 5 8 6 5 1 8 6 4 8 8 Tactical Retreats 33 | . 2 4 2 5 7 3 . . . . 1 2 . . . . 1 2 . . . . . . 4 ECM-based Alert Blocks 1 | . . . . . . . . . . . . . . . . . . . . . . . . . 1 Traps | -11 -10 -10 -10 -8 -7 -7 -7 -7 -6 -6 -6 -6 -6 -6 -6 -5 -5 -5 -5 -5 -5 -4 -4 -4 -3 ------- Run | Yrd Mat Min Sub Mat Fac Low Low Zio Pro Fac Was Fac Low Low Dat Pro Fac Ext Cet Arc Hub Fac Was Fac Res Traps Triggered 14 | . . . 1 . 2 . . . . 2 . . . . . . . 3 . . 2 1 . 1 2 Indirectly . | . . . . . . . . . . . . . . . . . . . . . . . . . . Trap Hack Attempts . | . . . . . . . . . . . . . . . . . . . . . . . . . . Triggered . | . . . . . . . . . . . . . . . . . . . . . . . . . . Disarmed . | . . . . . . . . . . . . . . . . . . . . . . . . . . Reprogrammed . | . . . . . . . . . . . . . . . . . . . . . . . . . . Reused . | . . . . . . . . . . . . . . . . . . . . . . . . . . Traps Extracted . | . . . . . . . . . . . . . . . . . . . . . . . . . . Installed 4 | . . . . . . 3 . . . . . 1 . . . . . . . . . . . . . Triggered . | . . . . . . . . . . . . . . . . . . . . . . . . . . Most Traps Carried 6 | . . . . . . 6 3 3 5 5 2 1 . . . . . . . . . . . . . Machines | -11 -10 -10 -10 -8 -7 -7 -7 -7 -6 -6 -6 -6 -6 -6 -6 -5 -5 -5 -5 -5 -5 -4 -4 -4 -3 ---------- Run | Yrd Mat Min Sub Mat Fac Low Low Zio Pro Fac Was Fac Low Low Dat Pro Fac Ext Cet Arc Hub Fac Was Fac Res Machines Disabled 44 | . . 1 . 2 . 2 . . . . . 8 1 . . . 1 1 2 3 16 3 . 3 1 Max in Single Turn 13 | . . 1 . 1 . 1 . . . . . 4 1 . . . 1 . 1 1 13 1 . 1 1 Garrison Access 5 | . . . . 1 1 . . . . . . 1 . . . . . . . . 2 . . . . Network Hub 2 | . . . . . . . . . . . . . . . . . . . . . 2 . . . . Machines Repaired . | . . . . . . . . . . . . . . . . . . . . . . . . . . Machines Dismantled 1 | . . . . . . . . . . . . . . . . . . . 1 . . . . . . Machines Sabotaged . | . . . . . . . . . . . . . . . . . . . . . . . . . . Overloaded Fab Kills . | . . . . . . . . . . . . . . . . . . . . . . . . . . Hacking | -11 -10 -10 -10 -8 -7 -7 -7 -7 -6 -6 -6 -6 -6 -6 -6 -5 -5 -5 -5 -5 -5 -4 -4 -4 -3 --------- Run | Yrd Mat Min Sub Mat Fac Low Low Zio Pro Fac Was Fac Low Low Dat Pro Fac Ext Cet Arc Hub Fac Was Fac Res Machines Accessed 36 | . 2 . . 12 4 1 . . . 1 . 5 . . 4 . 1 . . . 1 . . 1 4 Terminals 13 | . 2 . . 8 3 . . . . . . . . . . . . . . . . . . . . Fabricators 2 | . . . . . . . . . . . . 1 . . . . 1 . . . . . . . . Repair Stations 3 | . . . . . . . . . . . . 1 . . . . . . . . . . . 1 1 Recycling Units 5 | . . . . 2 . . . . . . . 2 . . . . . . . . . . . . 1 Scanalyzers 4 | . . . . 1 . . . . . 1 . . . . . . . . . . . . . . 2 Garrison Access 4 | . . . . 1 1 . . . . . . 1 . . . . . . . . 1 . . . . Total Hacks 97 | . 4 . . 23 7 7 . . . 2 . 10 . . 30 . 1 . . . 1 . . 3 9 Successful 64 | . 2 . . 10 4 7 . . . 1 . 3 . . 30 . 1 . . . 1 . . 1 4 Failed 31 | . 2 . . 12 3 . . . . 1 . 7 . . . . . . . . . . . 2 4 Catastrophic 4 | . . . . 1 . . . . . . . 1 . . . . . . . . . . . 2 . Database Lockouts 2 | . . . . 1 . . . . . . . . . . . . . . . . . . . . 1 Manual 130 | . 4 . . 16 6 . . . . 8 . 29 . . . . 3 19 1 . 20 3 . 12 9 Terminals 22 | . 4 . . 14 4 . . . . . . . . . . . . . . . . . . . . Fabricators 4 | . . . . . . . . . . . . 3 . . . . 1 . . . . . . . . Repair Stations 8 | . . . . . . . . . . . . 1 . . . . . . . . . . . 3 4 Recycling Units 8 | . . . . 4 . . . . . . . 3 . . . . . . . . . . . . 1 Scanalyzers 10 | . . . . 4 . . . . . 2 . . . . . . . . . . . . . . 4 Garrison Access 8 | . . . . 1 3 . . . . . . 3 . . . . . . . . 1 . . . . Terminal Hacks 41 | . 1 . . 1 2 7 . . . . . . . . 30 . . . . . . . . . . Record 18 | . . . . . . 7 . . . . . . . . 11 . . . . . . . . . . Part Schematic 11 | . 1 . . . . . . . . . . . . . 10 . . . . . . . . . . Robot Schematic 6 | . . . . . . . . . . . . . . . 6 . . . . . . . . . . Prototype ID Bank 3 | . . . . . . . . . . . . . . . 3 . . . . . . . . . . Branch Access Points 2 | . . . . 1 1 . . . . . . . . . . . . . . . . . . . . Locate Traps 1 | . . . . . 1 . . . . . . . . . . . . . . . . . . . . Fabricator Hacks 1 | . . . . . . . . . . . . . . . . . 1 . . . . . . . . Build 1 | . . . . . . . . . . . . . . . . . 1 . . . . . . . . Repair Station Hacks 3 | . . . . . . . . . . . . . . . . . . . . . . . . 1 2 Scan Component 2 | . . . . . . . . . . . . . . . . . . . . . . . . 1 1 Repair 1 | . . . . . . . . . . . . . . . . . . . . . . . . . 1 Recycling Unit Hacks 3 | . . . . 2 . . . . . . . . . . . . . . . . . . . . 1 Report Inventory 1 | . . . . 1 . . . . . . . . . . . . . . . . . . . . . Retrieve Components 2 | . . . . 1 . . . . . . . . . . . . . . . . . . . . 1 Scanalyzer 5 | . . . . 3 . . . . . 1 . . . . . . . . . . . . . . 1 Retrieve Study 5 | . . . . 3 . . . . . 1 . . . . . . . . . . . . . . 1 Garrison Access Hacks 1 | . . . . 1 . . . . . . . . . . . . . . . . . . . . . Seal Access 1 | . . . . 1 . . . . . . . . . . . . . . . . . . . . . Unauthorized Hacks 10 | . 1 . . 3 2 . . . . . . 3 . . . . . . . . 1 . . . . Terminals 5 | . 1 . . 2 2 . . . . . . . . . . . . . . . . . . . . Botnet 5 | . 1 . . 2 2 . . . . . . . . . . . . . . . . . . . . Fabricators 1 | . . . . . . . . . . . . 1 . . . . . . . . . . . . . Liberate 1 | . . . . . . . . . . . . 1 . . . . . . . . . . . . . Repair Stations 1 | . . . . . . . . . . . . 1 . . . . . . . . . . . . . Mechanics 1 | . . . . . . . . . . . . 1 . . . . . . . . . . . . . Recycling Units 1 | . . . . 1 . . . . . . . . . . . . . . . . . . . . . Tunnel 1 | . . . . 1 . . . . . . . . . . . . . . . . . . . . . Scanalyzers . | . . . . . . . . . . . . . . . . . . . . . . . . . . Garrison Access 2 | . . . . . . . . . . . . 1 . . . . . . . . 1 . . . . Jam 2 | . . . . . . . . . . . . 1 . . . . . . . . 1 . . . . Data Cores Recovered 2 | . . . . . . . . . . . . 1 . . . . . . . . . . . 1 . Used . | . . . . . . . . . . . . . . . . . . . . . . . . . . Hacking Detections 21 | . 1 . . 8 3 . . . . 1 . 4 . . . . 1 . . . . . . 1 2 Full Trace Events 1 | . . . . . 1 . . . . . . . . . . . . . . . . . . . . Feedback Events . | . . . . . . . . . . . . . . . . . . . . . . . . . . Feedback Blocked . | . . . . . . . . . . . . . . . . . . . . . . . . . . Robot Schematics Acquired 9 | . . . . . . . . 3 . . . . . . 6 . . . . . . . . . . Robots Built . | . . . . . . . . . . . . . . . . . . . . . . . . . . Authchips . | . . . . . . . . . . . . . . . . . . . . . . . . . . Time . | . . . . . . . . . . . . . . . . . . . . . . . . . . Total Robot Build Rating . | . . . . . . . . . . . . . . . . . . . . . . . . . . Part Schematics Acquired 43 | . 1 . . . . . . 16 . . . . . . 10 . . 16 . . . . . . . Parts Built 2 | . . . . . . . . . . . . . . . . . 2 . . . . . . . . Authchips . | . . . . . . . . . . . . . . . . . . . . . . . . . . Time 53 | . . . . . . . . . . . . . . . . . 53 . . . . . . . . Total Part Build Rating 12 | . . . . . . . . . . . . . . . . . 12 . . . . . . . . Part Studies Acquired 3 | . . . . 1 . . . . . 1 . . . . . . . . . . . . . . 1 Parts Repaired 1 | . . . . . . . . . . . . . . . . . . . . . . . . . 1 Time 44 | . . . . . . . . . . . . . . . . . . . . . . . . . 44 Parts Recycled . | . . . . . . . . . . . . . . . . . . . . . . . . . . Recycled Matter . | . . . . . . . . . . . . . . . . . . . . . . . . . . Retrieved Matter . | . . . . . . . . . . . . . . . . . . . . . . . . . . Retrieved Components 9 | . . . . 9 . . . . . . . . . . . . . . . . . . . . . Parts Scanalyzed . | . . . . . . . . . . . . . . . . . . . . . . . . . . Part Schematics Acquired . | . . . . . . . . . . . . . . . . . . . . . . . . . . Parts Damaged . | . . . . . . . . . . . . . . . . . . . . . . . . . . Bothacking | -11 -10 -10 -10 -8 -7 -7 -7 -7 -6 -6 -6 -6 -6 -6 -6 -5 -5 -5 -5 -5 -5 -4 -4 -4 -3 ------------ Run | Yrd Mat Min Sub Mat Fac Low Low Zio Pro Fac Was Fac Low Low Dat Pro Fac Ext Cet Arc Hub Fac Was Fac Res Used RIF Installer . | . . . . . . . . . . . . . . . . . . . . . . . . . . Robots Hacked . | . . . . . . . . . . . . . . . . . . . . . . . . . . Non-combat . | . . . . . . . . . . . . . . . . . . . . . . . . . . Combat . | . . . . . . . . . . . . . . . . . . . . . . . . . . Robot Hacks Applied . | . . . . . . . . . . . . . . . . . . . . . . . . . . Relay Couplers Released 1 | . . . . . . . . . . . . . . . . . . . . . 1 . . . . Machine Destruction 1 | . . . . . . . . . . . . . . . . . . . . . 1 . . . . Fabnet Peak Effective % . | . . . . . . . . . . . . . . . . . . . . . . . . . . Robots Rewired 12 | . . . . . . 2 . . 1 . . . 2 . . . . 7 . . . . . . . Allies Hacked 2 | . . . . . . . . . . . . . . . . . . . . . 1 . . 1 . Hacks Repelled . | . . . . . . . . . . . . . . . . . . . . . . . . . . Allies | -11 -10 -10 -10 -8 -7 -7 -7 -7 -6 -6 -6 -6 -6 -6 -6 -5 -5 -5 -5 -5 -5 -4 -4 -4 -3 -------- Run | Yrd Mat Min Sub Mat Fac Low Low Zio Pro Fac Was Fac Low Low Dat Pro Fac Ext Cet Arc Hub Fac Was Fac Res Total Allies 74 | . . 2 . . . 2 . 8 1 3 . 5 2 . . . 1 25 5 . 7 1 . 9 3 Largest Group 19 | . . 2 2 . . 2 2 9 9 7 2 8 2 2 . . 1 19 17 17 17 1 1 5 2 Highest-Rated Group 927 | . . 46 46 . . 62 59 286 286 340 106 524 61 61 . . 30 646 927 927 813 127 127 426 206 Highest-Rated Ally 159 | . . 31 31 . . 32 32 37 37 70 70 85 32 32 . . 30 159 159 143 96 127 127 103 103 Zionite Dispatches 18 | . . . . . . . . . . 1 . 3 . . . . 1 4 . . 2 1 . 4 2 Heavy 3 | . . . . . . . . . . . . 1 . . . . . . . . . . . 1 1 Light 4 | . . . . . . . . . . 1 . 1 . . . . . 1 . . 1 . . . . Recon 1 | . . . . . . . . . . . . 1 . . . . . . . . . . . . . Fire 2 | . . . . . . . . . . . . . . . . . . . . . 1 . . 1 . Hacker 1 | . . . . . . . . . . . . . . . . . . . . . . . . 1 . Hero 1 | . . . . . . . . . . . . . . . . . . . . . . 1 . . . Melee Resupply 1 | . . . . . . . . . . . . . . . . . . 1 . . . . . . . Defense Resupply 1 | . . . . . . . . . . . . . . . . . 1 . . . . . . . . Infowar Resupply 1 | . . . . . . . . . . . . . . . . . . 1 . . . . . . . Hacking Resupply 1 | . . . . . . . . . . . . . . . . . . . . . . . . . 1 Hover Resupply 2 | . . . . . . . . . . . . . . . . . . 1 . . . . . 1 . Total Orders 19 | . . . . . . . . . . . . 3 3 1 . . 2 2 . 2 2 . . 3 1 STAY 4 | . . . . . . . . . . . . . . 1 . . . . . 1 2 . . . . ROAM 1 | . . . . . . . . . . . . . . . . . 1 . . . . . . . . FOLLOW 1 | . . . . . . . . . . . . . . . . . . . . 1 . . . . . DROP 5 | . . . . . . . . . . . . . . . . . 1 2 . . . . . 1 1 EXPLORE 6 | . . . . . . . . . . . . 2 2 . . . . . . . . . . 2 . RETURN 2 | . . . . . . . . . . . . 1 1 . . . . . . . . . . . . Ally Attacks 710 | . . 1 12 . . 14 2 . 56 34 . 75 2 16 . . . 170 43 24 167 . 11 73 10 Total Damage 20342 | . . 20 247 . . 398 59 . 1312 693 . 2260 35 339 . . . 4138 948 452 4906 . 1044 2673 818 Kills 132 | . . 1 1 . . 3 1 . 12 4 . 18 2 2 . . . 24 5 1 34 . 2 19 3 Allies Corrupted 7 | . . . . . . . . . 1 . . . . . . . . . . . 3 . . 1 2 Allies Melted . | . . . . . . . . . . . . . . . . . . . . . . . . . . Intel | -11 -10 -10 -10 -8 -7 -7 -7 -7 -6 -6 -6 -6 -6 -6 -6 -5 -5 -5 -5 -5 -5 -4 -4 -4 -3 ------- Run | Yrd Mat Min Sub Mat Fac Low Low Zio Pro Fac Was Fac Low Low Dat Pro Fac Ext Cet Arc Hub Fac Was Fac Res Active Infowar (turns) 18476 | 29 124 999 2127 2117 1078 1105 646 2547 865 279 90 934 122 909 191 733 341 254 . . 484 448 156 586 1312 Sensors 6893 | . . . . . . 1060 646 2547 786 . . . . . . . . . . . . 72 120 497 1165 Terrain 4970 | . . 100 . 1453 . . . . . . . . 122 909 191 733 341 254 . . 484 . . . 383 Structural 12009 | . . 899 2127 665 1078 1105 646 2547 865 279 90 934 . . . . 5 . . . 41 376 . 352 . Seismic 300 | 29 124 . . . . . . . . . . . . . . . . . . . . . . . 147 Decoding 756 | . . . . . . . . . . . . . . . . . . . . . . 446 156 154 . ECM 34 | . . . . . . . . . . . . . . . . . . . . . . . . . 34 Robot Analysis Total . | . . . . . . . . . . . . . . . . . . . . . . . . . . Derelict Logs Recovered 11 | . . 2 1 . . . 1 2 . . . . 3 1 . 1 . . . . . . . . . Drone Launches 8 | . . . . . . . . . . . . 2 4 . . . . . . . . . . 2 . Drone Recoveries 7 | . . . . . . . . . . . . 2 4 . . . . . . . . . . 1 . Decoded 0b10 Intel 21 | . . . . . . . . . . . . . . . . . . . . . . 13 2 6 . Traps 4 | . . . . . . . . . . . . . . . . . . . . . . 2 . 2 . Emergency Access 1 | . . . . . . . . . . . . . . . . . . . . . . 1 . . . Items 15 | . . . . . . . . . . . . . . . . . . . . . . 9 2 4 . Machines 1 | . . . . . . . . . . . . . . . . . . . . . . 1 . . . Zionite Intel Received 12 | . . . . . . . . . . 1 . 4 . . . . . 2 . . 3 . . 1 1 Main Access 1 | . . . . . . . . . . . . 1 . . . . . . . . . . . . . Branch Access 1 | . . . . . . . . . . 1 . . . . . . . . . . . . . . . Emergency Access 4 | . . . . . . . . . . . . 1 . . . . . . . . 1 . . 1 1 Prototype Stockpiles 1 | . . . . . . . . . . . . 1 . . . . . . . . . . . . . Component Schematics 1 | . . . . . . . . . . . . . . . . . . 1 . . . . . . . Unaware Analyses 2 | . . . . . . . . . . . . . . . . . . 1 . . 1 . . . . Trap Installations 1 | . . . . . . . . . . . . . . . . . . . . . 1 . . . . Depthwide Sectors/0 1 | . . . . . . . . . . . . 1 . . . . . . . . . . . . . Exploration | -11 -10 -10 -10 -8 -7 -7 -7 -7 -6 -6 -6 -6 -6 -6 -6 -5 -5 -5 -5 -5 -5 -4 -4 -4 -3 ------------- Run | Yrd Mat Min Sub Mat Fac Low Low Zio Pro Fac Was Fac Low Low Dat Pro Fac Ext Cet Arc Hub Fac Was Fac Res Turns Passed 23665 | 109 279 1525 2238 2365 1078 1105 646 2547 865 279 90 1477 856 909 191 733 341 1503 437 564 631 449 156 750 1542 Spaces Moved 13160 | 70 122 704 1075 1317 517 558 378 1477 302 175 69 891 566 386 82 275 184 748 212 101 368 219 153 622 1589 Core 274 | 3 . . . . . . . . . . . . . . . . . . . . . 5 62 . 204 Treads 1880 | . 95 704 643 . . . . 350 58 30 . . . . . . . . . . . . . . . Legs 6268 | 67 27 . . 1265 517 120 . . 172 . . 708 566 386 82 275 184 748 212 101 368 214 91 165 . Wheels 2899 | . . . 432 52 . 438 378 1127 72 145 69 183 . . . . . . . . . . . . 3 Hover 1836 | . . . . . . . . . . . . . . . . . . . . . . . . 457 1379 Flight 3 | . . . . . . . . . . . . . . . . . . . . . . . . . 3 Fastest Speed 21 | 50 120 160 110 95 108 110 155 155 155 108 108 105 121 121 121 121 126 118 118 118 115 115 50 21 29 Average Speed 128 | 117 151 169 188 120 118 176 163 166 221 134 122 118 121 121 121 121 126 129 118 118 116 148 91 53 46 Slowest Speed 800 | 120 160 240 240 140 188 315 170 170 252 243 130 178 201 121 121 121 126 215 118 118 197 800 190 170 190 Overloaded Moves . | . . . . . . . . . . . . . . . . . . . . . . . . . . Propulsion Burnouts . | . . . . . . . . . . . . . . . . . . . . . . . . . . Robots Hopped . | . . . . . . . . . . . . . . . . . . . . . . . . . . Potential Cave-ins 3 | . . . . . 2 . . . . . . . . . . . . . . . . . . . 1 Cave-ins Triggered 1 | . . . . . . . . . . . . . . . . . . . . . . . . . 1 Exploration Rate (%) 51 | 5 29 100 53 84 24 62 63 90 44 7 72 27 76 53 68 52 8 82 62 77 50 6 86 18 45 Regions Visited 25 Branch Regions 14 Pre-discovered Areas 15 | . . 2 2 1 . 2 . . . . . 6 1 . 1 . . . . . . . . . . Known Exits Taken 6 | . . . . 1 1 . . . . . . 1 . . . 1 1 . . . . . . 1 . Unknown Exits Taken 15 | 1 1 1 1 . . 1 1 1 1 . . . 1 1 1 . . 1 1 1 1 . . . . Scrap Searched 21 | . . 2 5 . . 3 1 5 1 . . . 3 1 . . . . . . . . . . . Spaces Dug 165 | . . 5 . . 9 12 3 . . . . 6 91 . . 2 5 . . . . . . 2 30 Terrain Destroyed 951 | . . 5 23 12 37 74 27 . 32 1 . 45 217 7 . 80 9 6 1 3 164 58 . 11 139 Melee 36 | . . . . . 9 . 3 . . . . . . . . . . . . . . . . 1 23 Projectile 100 | . . 5 . 4 . 1 . . . 1 . 26 3 1 . 2 9 6 1 3 . 1 . 10 27 AOE 812 | . . . 23 8 28 73 24 . 32 . . 19 214 6 . 78 . . . . 161 57 . . 89 Terrain Rammed . | . . . . . . . . . . . . . . . . . . . . . . . . . . Walls Destroyed . | . . . . . . . . . . . . . . . . . . . . . . . . . . Machines Disabled . | . . . . . . . . . . . . . . . . . . . . . . . . . . Actions | -11 -10 -10 -10 -8 -7 -7 -7 -7 -6 -6 -6 -6 -6 -6 -6 -5 -5 -5 -5 -5 -5 -4 -4 -4 -3 --------- Run | Yrd Mat Min Sub Mat Fac Low Low Zio Pro Fac Was Fac Low Low Dat Pro Fac Ext Cet Arc Hub Fac Was Fac Res Total 18636 | 83 176 940 1224 1906 938 636 394 1567 482 207 75 1194 691 813 173 666 271 1185 370 515 506 291 166 963 2204 Wait 3733 | . 1 167 92 390 359 9 . 66 129 . 1 146 78 415 88 385 59 185 113 392 73 2 6 207 370 Move 13137 | 69 121 703 1074 1316 516 557 377 1476 301 175 68 890 565 385 81 274 183 747 211 100 367 219 152 621 1589 Hop . | . . . . . . . . . . . . . . . . . . . . . . . . . . Pick Up 136 | 2 9 17 4 26 4 9 4 8 7 2 . 8 2 . . . 4 8 5 2 2 3 . 4 6 Fast Attach 196 | 7 6 3 2 17 3 3 1 1 3 9 2 20 3 2 2 . 2 8 3 1 8 14 2 35 39 Attach 106 | . . 2 4 11 11 3 2 3 4 2 . 9 2 1 . . 2 2 3 1 4 10 . 11 19 Detach 72 | . 2 . . 7 4 . 1 . . 3 2 6 1 1 . . 1 2 2 1 5 4 2 11 17 Swap 110 | . 1 . 10 13 5 7 . 2 5 1 . 11 7 . . 2 4 12 3 . 6 4 . 6 11 Drop 214 | . 13 4 5 32 3 5 1 10 5 8 2 31 3 1 2 . 5 18 10 2 7 4 1 17 25 Fire 579 | 5 23 44 33 94 8 17 4 . 14 5 . 70 24 8 . 5 11 51 12 16 31 31 3 27 43 Melee 134 | . . . . . 20 8 4 1 2 2 . . . . . . . 4 . . . . . 23 70 Ram 10 | . . . . . . . . . . . . . . . . . . . . . . . . 1 9 Kick 4 | . . . . . . . . . . . . 2 . . . . . 2 . . . . . . . Crush . | . . . . . . . . . . . . . . . . . . . . . . . . . . Escape Stasis 15 | . . . . . 5 . . . . . . . . . . . . 4 . . . . . . 6 Rewire 178 | . . . . . . 15 . . 12 . . . 6 . . . . 142 . . 3 . . . . Trap 4 | . . . . . . 3 . . . . . 1 . . . . . . . . . . . . . Miscellaneous 8 | . . . . . . . . . . . . . . . . . . . 8 . . . . . . Route ------- -11/Scrapyard -10/Materials -10/Mines (discovered 3 exits: [*Mat x2] / [*Sub]) -10/Subcaves (discovered 2 exits: *Mat / [*Rec]) -8/Materials (discovered 2 exits: *Fac x2) -7/Factory (discovered 2 exits: *Low x2) -7/Lower Caves -7/Lower Caves -7/Zion -6/Proximity Caves -6/Factory (discovered 3 exits: Fac / Low x2) -6/Waste -6/Factory (discovered 5 exits: Fac x4 / *Low) -6/Lower Caves -6/Lower Caves -6/Data Miner -5/Proximity Caves -5/Factory (discovered 4 exits: Upp x2 / *Ext x2) -5/Extension (discovered 2 exits: *Fac / *Cet) -5/Cetus -5/Archives (discovered 2 exits: *Fac / *Hub) -5/Hub_04(d) (discovered 2 exits: *Fac x2) -4/Factory -4/Waste -4/Factory -3/Research History --------- Turn | Location | Event 22 | -11/Scrapyard | Discovered new exit (range 15) 110 | -11/Scrapyard | Entered Materials 214 | -10/Materials | Destroyed 7 combat bots 312 | -10/Materials | Build established: Mutant 321 | -10/Materials | Discovered new exit (range 15) 389 | -10/Materials | Entered Mines 403 | -10/Mines | Assembled infested the area 408 | -10/Mines | Assisted by a Guerilla fighting off Assembled 467 | -10/Mines | Found a hidden stash of uninstalled traps 840 | -10/Mines | Found a Scrap Suit stashed away for nefarious purposes 1105 | -10/Mines | Discovered new exit (range 6) 1122 | -10/Mines | Learned location of Storage (-9) 1242 | -10/Mines | Discovered new exit (range 3) 1260 | -10/Mines | Learned Materials trap positions 1624 | -10/Mines | Discovered new exit (range 3) 1914 | -10/Mines | Entered Subcaves 1914 | -10/Subcaves | Accompanied by 2 allies 1915 | -10/Subcaves | Approached by a straggling Scientist 1919 | -10/Subcaves | Led the pair of lost Derelicts to an unsafe place 2621 | -10/Subcaves | Shifting Twisted Machinery released Battle Cannon 2749 | -10/Subcaves | Shifting Twisted Machinery released Battle Cannon 2801 | -10/Subcaves | Discovered new exit (range 15) 2883 | -10/Subcaves | A swath of the cavern ceiling suddenly collapsed 2889 | -10/Subcaves | Learned location of Zion (-7) 2889 | -10/Subcaves | Met a Zionite searching for "candidates" 3118 | -10/Subcaves | Discovered new exit (range 13) 3642 | -10/Subcaves | Core integrity fell below 50% 3939 | -10/Subcaves | Build established: Scavenger-Mutant 4152 | -10/Subcaves | Entered Materials 4152 | -8/Materials | Evolved 4 slots: Propulsion x2, Utility x2 4153 | -8/Materials | Loaded intel: 18 trap records 4596 | -8/Materials | Discovered new exit (range 13) 4876 | -8/Materials | Build established: Mutant 5334 | -8/Materials | Identified exit to Factory 5860 | -8/Materials | Discovered exit to Factory (range 8) 6349 | -8/Materials | Central database locked down 6517 | -8/Materials | Entered Factory 6517 | -7/Factory | Evolved 2 slots: Utility x2 7322 | -7/Factory | Identified exit to Lower Caves 7595 | -7/Factory | Entered Lower Caves 7597 | -7/Lower Caves | Attracted the attention of an 0b10 outpost 7618 | -7/Lower Caves | Build established: Hacker-Mutant 7635 | -7/Lower Caves | Core integrity fell below 50% 7661 | -7/Lower Caves | Lost 6 parts (2p3n1u) 7821 | -7/Lower Caves | Attracted the attention of an 0b10 checkpoint 8680 | -7/Lower Caves | Learned location of Extension (-5) 8680 | -7/Lower Caves | Learned location of Armory (-4) 8680 | -7/Lower Caves | Learned Research emergency access door positions 8680 | -7/Lower Caves | Learned Armory stockpile data 8691 | -7/Lower Caves | Discovered new exit (range 7) 8700 | -7/Lower Caves | Entered another Lower Caves area 8700 | -7/Lower Caves | Accompanied by 2 allies 8883 | -7/Lower Caves | Learned location of 1 exit from Factory 9320 | -7/Lower Caves | Discovered new exit (range 16) 9346 | -7/Lower Caves | Entered Zion 9346 | -7/Zion | Accompanied by 1 ally 9368 | -7/Zion | Given A8's code to call for help 9518 | -7/Zion | Discovered new exit (range 11) 9546 | -7/Zion | Gained Derelict followers 9817 | -7/Zion | Learned Factory stockpile data 9949 | -7/Zion | Found CR-A16's Pointy Stick 10059 | -7/Zion | Found GAL Module 10371 | -7/Zion | Learned 8 Factory zone layouts 10593 | -7/Zion | Given the Hacking Drone Bay 11215 | -7/Zion | Met Imprinter 11245 | -7/Zion | Imprinted 11247 | -7/Zion | Declared Zion's savior 11593 | -7/Zion | Build established: Mutant 11893 | -7/Zion | Entered Proximity Caves 11893 | -6/Proximity Caves | Accompanied by 9 allies 11946 | -6/Proximity Caves | Attracted the attention of an 0b10 outpost 11981 | -6/Proximity Caves | Lost 3 allies 12333 | -6/Proximity Caves | Received a Behemoth hack from an annoying Tinkerer 12672 | -6/Proximity Caves | Attracted the attention of an 0b10 checkpoint 12715 | -6/Proximity Caves | Discovered new exit (range 8) 12758 | -6/Proximity Caves | Entered Factory 12758 | -6/Factory | Accompanied by 4 allies 12758 | -6/Factory | Evolved 2 slots: Power x1, Propulsion x1 12759 | -6/Factory | Identified exit to Factory 12931 | -6/Factory | Retrieved Zion intel report: Branch Access 12931 | -6/Factory | Identified exit to Lower Caves 12932 | -6/Factory | Zion Light squad teleported in 13037 | -6/Factory | Sucked down chute 13037 | -6/Factory | Entered Waste 13048 | -6/Waste | Spotted C-40 Crusher 13052 | -6/Waste | EMP discharged 13053 | -6/Waste | Spotted C-40 Crusher 13056 | -6/Waste | Spotted C-40 Crusher 13063 | -6/Waste | Spotted C-40 Crusher 13066 | -6/Waste | Crushed by Compactor (1 part destroyed, 1 dropped) 13074 | -6/Waste | Spotted C-40 Crusher 13074 | -6/Waste | Spotted C-40 Crusher 13107 | -6/Waste | Discovered new exit (range 16) 13127 | -6/Waste | Entered Factory 13147 | -6/Factory | 5 allies followed down the chute 13214 | -6/Factory | Zion Heavy squad teleported in 13375 | -6/Factory | Build established: Scavenger-Mutant 13534 | -6/Factory | Found Prototype Launcher 13534 | -6/Factory | Identified Scatter Rocket Array 13652 | -6/Factory | Garrison activated, responded to threat 13725 | -6/Factory | Retrieved Zion intel report: Main Access 13726 | -6/Factory | Zion Light squad teleported in 13846 | -6/Factory | Retrieved Zion intel report: Emergency Access 13898 | -6/Factory | Retrieved Zion intel report: Prototype Stockpiles 13990 | -6/Factory | Found Prototype Protection 13990 | -6/Factory | Identified Zio. Weapon Casing 14059 | -6/Factory | Lost 6 allies 14291 | -6/Factory | Build established: Messiah-Mutant 14458 | -6/Factory | Retrieved Zion intel report: Depthwide Sectors/-6 14459 | -6/Factory | Zion Recon squad teleported in 14525 | -6/Factory | Discovered exit to Lower Caves (range 64) 14527 | -6/Factory | First assault squad dispatched 14604 | -6/Factory | Entered Lower Caves 14848 | -6/Lower Caves | Attracted the attention of an 0b10 outpost 14910 | -6/Lower Caves | Destroyed 10 combat bots 15140 | -6/Lower Caves | Build established: Mutant 15231 | -6/Lower Caves | Learned location of 1 exit from Factory 15238 | -6/Lower Caves | Learned Factory terminal intel 15452 | -6/Lower Caves | Discovered new exit (range 6) 15458 | -6/Lower Caves | Encountered a Warlord checkpoint 15460 | -6/Lower Caves | Entered another Lower Caves area 15460 | -6/Lower Caves | Accompanied by 2 allies 15653 | -6/Lower Caves | Encountered a Warlord checkpoint 16085 | -6/Lower Caves | Attracted the attention of an 0b10 checkpoint 16201 | -6/Lower Caves | Learned 12 Factory zone layouts 16320 | -6/Lower Caves | Discovered new exit (range 15) 16369 | -6/Lower Caves | Entered Data Miner 16369 | -6/Data Miner | Discovered new exit (range 6) 16393 | -6/Data Miner | Met Data Miner 16415 | -6/Data Miner | Learned location of Section 7 (-2) 16415 | -6/Data Miner | Acquired the access code to Warlord's prototype stash 16456 | -6/Data Miner | Build established: Scavenger-Mutant 16529 | -6/Data Miner | Received God Mode back door access code from Data Miner 16560 | -6/Data Miner | Entered Proximity Caves 17030 | -5/Proximity Caves | Spotted B-75 Beast 17293 | -5/Proximity Caves | Entered Factory 17293 | -5/Factory | Evolved 2 slots: Propulsion x1, Utility x1 17294 | -5/Factory | Identified exit to Upper Caves 17295 | -5/Factory | Identified exit to Extension 17296 | -5/Factory | Loaded intel: 28 terminal locations 17358 | -5/Factory | Fabricated Imp. Plasma Cutter (x2) 17398 | -5/Factory | Zion Defense Resupply teleported in 17621 | -5/Factory | Discovered exit to Extension (range 10) 17634 | -5/Factory | Entered Extension 17742 | -5/Extension | Rescued a captive Derelict 17919 | -5/Extension | Rescued A7 17945 | -5/Extension | Incoming investigation squad redirected 17974 | -5/Extension | Retrieved Zion intel report: Unaware Analyses 17975 | -5/Extension | Zion Light squad teleported in 18010 | -5/Extension | Retrieved Zion intel report: Component Schematics 18011 | -5/Extension | Zion Hover Resupply teleported in 18033 | -5/Extension | Rescued a captive Derelict 18177 | -5/Extension | Build established: Commander-Mutant 18483 | -5/Extension | Spotted B-75 Beast 18489 | -5/Extension | Spotted B-75 Beast 18498 | -5/Extension | Allies destroyed B-75 Beast 18514 | -5/Extension | Revealed the true nature of CR-A16's Pointy Stick 18518 | -5/Extension | Destroyed B-75 Beast 18536 | -5/Extension | Lost 4 allies 18574 | -5/Extension | Rescued a captive Derelict 18576 | -5/Extension | Rescued a captive Derelict 18688 | -5/Extension | Rescued a captive Derelict 18688 | -5/Extension | Rescued a captive Derelict 18741 | -5/Extension | Zion Melee Resupply teleported in 18875 | -5/Extension | Rescued a captive Derelict 18880 | -5/Extension | Rescued a captive Derelict 18881 | -5/Extension | Rescued a captive Derelict 18915 | -5/Extension | Rescued a captive Derelict 18916 | -5/Extension | Rescued a captive Derelict 18975 | -5/Extension | Zion Infowar Resupply teleported in 19043 | -5/Extension | Discovered new exit (range 10) 19044 | -5/Extension | Discovered new exit (range 6) 19107 | -5/Extension | Terminal network hard line cut 19137 | -5/Extension | Entered Cetus 19137 | -5/Cetus | Accompanied by 17 allies (A7) 19142 | -5/Cetus | Acquired a Cetus Manufacturing Module code from A7 19160 | -5/Cetus | Spotted Cetus Guard 19160 | -5/Cetus | Spotted Cetus Guard 19162 | -5/Cetus | Spotted Cetus Guard 19172 | -5/Cetus | Allies destroyed Cetus Guard 19177 | -5/Cetus | Spotted Cetus Guard 19180 | -5/Cetus | Destroyed Cetus Guard 19194 | -5/Cetus | Allies destroyed Cetus Guard 19196 | -5/Cetus | Allies destroyed Cetus Guard 19224 | -5/Cetus | Lost 5 allies 19347 | -5/Cetus | Started Cetus Manufacturing Module 19372 | -5/Cetus | Manufactured an Enhanced Grunt 19374 | -5/Cetus | Escorted A7 to Cetus Mainframe 19397 | -5/Cetus | Manufactured an Enhanced Grunt 19422 | -5/Cetus | Manufactured an Enhanced Grunt 19447 | -5/Cetus | Manufactured an Enhanced Grunt 19472 | -5/Cetus | Manufactured an Enhanced Grunt 19477 | -5/Cetus | Discovered new exit (range 15) 19574 | -5/Cetus | Entered Archives 19574 | -5/Archives | Accompanied by 17 allies (A7) 19579 | -5/Archives | Received a hacking code to weaken MAIN.C 19717 | -5/Archives | Discovered new exit (range 16) 19794 | -5/Archives | Discovered new exit (range 16) 20138 | -5/Archives | Entered Hub_04(d) 20138 | -5/Hub_04(d) | Accompanied by 13 allies 20190 | -5/Hub_04(d) | Zion Fire squad teleported in 20234 | -5/Hub_04(d) | Zion Light squad teleported in 20325 | -5/Hub_04(d) | Discovered new exit (range 14) 20335 | -5/Hub_04(d) | Lost 6 allies 20450 | -5/Hub_04(d) | Retrieved Zion intel report: Unaware Analyses 20482 | -5/Hub_04(d) | Discovered new exit (range 17) 20520 | -5/Hub_04(d) | Retrieved Zion intel report: Emergency Access 20572 | -5/Hub_04(d) | Build established: Scavenger-Mutant 20594 | -5/Hub_04(d) | Retrieved Zion intel report: Trap Installations 20721 | -5/Hub_04(d) | P-70 Sage assimilated allied HJ-R0J(A) 20738 | -5/Hub_04(d) | First assault squad dispatched 20739 | -5/Hub_04(d) | Network Hub disabled 20751 | -5/Hub_04(d) | Spotted Lightning 20752 | -5/Hub_04(d) | Spotted Lightning 20762 | -5/Hub_04(d) | Network Hub disabled 20764 | -5/Hub_04(d) | System corruption reached 10% 20767 | -5/Hub_04(d) | Incoming assault squad redirected 20769 | -5/Hub_04(d) | Entered Factory 20769 | -4/Factory | Evolved 2 slots: Propulsion x1, Weapon x1 20796 | -4/Factory | Lost 6 allies 20844 | -4/Factory | Lost 5 parts (1p4n) 20951 | -4/Factory | Lost 5 parts (1p2n2w) 21067 | -4/Factory | Zion hero teleported in (CL-ANK) 21086 | -4/Factory | Discovered new exit (range 14) 21172 | -4/Factory | Identified exit to Research 21218 | -4/Factory | Sucked down chute 21218 | -4/Factory | Entered Waste 21228 | -4/Waste | Spotted C-40 Crusher 21231 | -4/Waste | Spotted C-40 Crusher 21233 | -4/Waste | 6 allies followed down the chute 21233 | -4/Waste | EMP discharged 21242 | -4/Waste | Crushed by Compactor (1 part destroyed, 1 dropped) 21250 | -4/Waste | Spotted C-40 Crusher 21259 | -4/Waste | Allies destroyed C-40 Crusher 21265 | -4/Waste | Allies destroyed C-40 Crusher 21312 | -4/Waste | Spotted C-40 Crusher 21322 | -4/Waste | Spotted C-40 Crusher 21326 | -4/Waste | Crushed by Compactor (1 part destroyed, 2 dropped) 21332 | -4/Waste | Crushed by Compactor (1 part destroyed, 2 dropped) 21333 | -4/Waste | EMP discharged 21333 | -4/Waste | System corruption reached 10% 21336 | -4/Waste | Crushed by Compactor (1 part destroyed, 1 dropped) 21338 | -4/Waste | Crushed by Compactor (1 part destroyed, 1 dropped) 21353 | -4/Waste | Spotted C-40 Crusher 21357 | -4/Waste | Discovered new exit (range 16) 21367 | -4/Waste | Identified exit to Factory 21369 | -4/Waste | Lost 4 parts (1p1n2u) 21374 | -4/Waste | Entered Factory 21522 | -4/Factory | Retrieved Zion intel report: Emergency Access 21523 | -4/Factory | Zion Hover Resupply teleported in 21566 | -4/Factory | Zion Hacker squad teleported in 21631 | -4/Factory | Build established: Mutant 21755 | -4/Factory | Discovered exit to Research (range 36) 21903 | -4/Factory | Zion Heavy squad teleported in 21963 | -4/Factory | Spotted B-86 Titan 21977 | -4/Factory | Allies destroyed B-86 Titan 22043 | -4/Factory | Core integrity fell below 50% 22045 | -4/Factory | Zion Fire squad teleported in 22058 | -4/Factory | Lost 5 allies 22077 | -4/Factory | Lost 7 parts (1p4n2u) 22087 | -4/Factory | System corruption reached 30% 22124 | -4/Factory | Entered Research 22124 | -3/Research | Evolved 2 slots: Propulsion x1, Utility x1 22128 | -3/Research | Lost 3 allies 22306 | -3/Research | Retrieved Zion intel report: Emergency Access 22307 | -3/Research | Zion Heavy squad teleported in 22413 | -3/Research | Build established: Scavenger-Scout 22833 | -3/Research | Found Prototype Launcher 22833 | -3/Research | Identified Hellfire Missile Launcher 22843 | -3/Research | Found Prototype Processor 22843 | -3/Research | Identified Exp. Signal Interpreter 22865 | -3/Research | Zion Hacking Resupply teleported in 22951 | -3/Research | Repaired Ionic Axe 22973 | -3/Research | Central database locked down 23005 | -3/Research | Spotted B-86 Titan 23016 | -3/Research | Build established: Scavenger-Mutant 23249 | -3/Research | System corruption reached 10% 23281 | -3/Research | Lost 13 parts (2p7n3u1w) 23339 | -3/Research | Lost 5 parts (3n1u1w) 23409 | -3/Research | Terminal network hard line cut 23525 | -3/Research | Core integrity fell below 50% 23545 | -3/Research | Crushed by falling debris 23545 | -3/Research | System corruption reached 30% 23560 | -3/Research | Destroyed 8 combat bots 23601 | -3/Research | Core integrity fell below 20% 23609 | -3/Research | Build established: Mutant 23622 | -3/Research | Lost 15 parts (1p7n5u2w) 23666 | -3/Research | Destroyed by P-80 Master with Gamma Rifle Last Messages --------------- 23577_ Slammed into A-15 Conveyor. 23577_ Penetrated by Slug. 23578_ Slammed into A-15 Conveyor. 23579_ System corrupted: Energy discharge (-21). 23584_ Seismic Detector destroyed. 23591_ Adv. Hacking Suite destroyed. 23594_ System corrupted: Component data lost. 23610_ ALERT: Security rotation in progress. 23610_ Slammed into K-01 Serf. 23630_ System corrupted: Heat flow error (+154). 23634_ Slammed into P-80 Master. 23634_ P-80 Master knocked back. 23637_ Penetrated by Slug. 23638_ ALERT: Potential suspicious activity detected, Programmers report to Research Zone 7U. 23644_ Slammed into T-07 Excavator. 23656_ ALERT: Suspicious intruders detected, dispatching Cutter reinforcements to area. 23663_ Acquired Impulse Thruster Array. 23666_ System corrupted: Matter fused (-8). Map ----- +----------------------------------------------------+ | ??????????????????????????????????# #????????????? | | ??????????????????????????????????# #????????????? | | ??????????????????????????????????# #????????? ?? | | ??????????????????????????????????#+########? ??? | | ??????????????????????????????????# ! # ???? | | ??????????????????????????????????# # ????? | | ??????????????????????????????????# """ / ????? | | ??????????????????????????????????# """ #?????? | | ??????????????????????????????????# """ #?????? | | ??????????????????????????????????# """ #?????? | | ??????????????????????????????????# """ #?????? | | ??????????????????????????????????# #?????? | | ??????????????????????????????????# #?????? | | ??????????????????????????????????###+######?????? | | ????????????????????????????????????# #? / #?????? | | ????????????????????????????????????# #? #?????? | | ????????????????????????????????????# # #?????? | | ??????????????????????????????####### # ] #?????? | | ??????????????????????????????# p + #?????? | | ??????????????????#???????????# # #?????? | | ??????????????????# ########### # #?????? | | ??????????????????# #? !#?????? | | ??????????????????# R p #? #?????? | | ??????????????????# #??###?????? | | ??????????????????# #??????????? | | ??????????????????#+#####@###########+#??????????? | | ???????????????????????# #?????????????????? | | ???????????????????????# #?????????????????? | | ???????????????????????# +?+???????????????? | | ???????????????????????# #?????????????????? | | ???????????????????????# #?????????????????? | | ???????????????????????#########?????????????????? | | ?????????????????????????????????????????????????? | | ?????????????????????????????????????????????????? | | ?????????????????????????????????????????????????? | | ?????????????????????????????????????????????????? | | ?????????????????????????????????????????????????? | | ?????????????????????????????????????????????????? | | ?????????????????????????????????????????????????? | | ?????????????????????????????????????????????????? | | ?????????????????????????????????????????????????? | | ?????????????????????????????????????????????????? | | ?????????????????????????????????????????????????? | | ?????????????????????????????????????????????????? | | ?????????????????????????????????????????????????? | | ?????????????????????????????????????????????????? | | ?????????????????????????????????????????????????? | | ?????????????????????????????????????????????????? | | ?????????????????????????????????????????????????? | | ?????????????????????????????????????????????????? | +----------------------------------------------------+ Best States ------------- Heat Dissipation 91 Coolant Potential 65 Energy Generation 45 Energy Capacity 600 Matter Stores 300 Matter Capacity 300 Sight Range 16 Robot Scan Range 18 Terrain Scan Range 20 Terrain Scan Density 210 ECM Strength 2 Armor Coverage 625 Resistance: KI 25 Utility Shielding 90 Weapon Shielding 100 Evasion (%) 70 Targeting Accuracy 8 Target Analysis 8 Recoil Reduction 4 Particle Charging 15 Offensive Hacking 28 Defensive Hacking 12 Item Schematics ----------------- Med. Storage Unit | -10/Materials | Hacked Lightning Gun | -7/Zion | Archive Magnetic Acceleration Cannon | -7/Zion | Archive Imp. Cooling System | -7/Zion | Archive Proton Cannon | -7/Zion | Archive Recalibrator | -7/Zion | Archive Adv. Signal Interpreter | -7/Zion | Archive Matter Filter | -7/Zion | Archive Drone Bay | -7/Zion | Archive Power Maul | -7/Zion | Archive Antigrav System | -7/Zion | Archive Lrn. Proton Cannon | -7/Zion | Archive Imp. Shield Generator | -7/Zion | Archive Med. Reflective Plating | -7/Zion | Archive Imp. Particle Charger | -7/Zion | Archive Hvy. Machine Gun | -7/Zion | Archive HERF Cannon | -7/Zion | Archive Combat Drone Bay | -6/Data Miner | Free Lgt. Regenerative Plating | -6/Data Miner | Free Enh. Armored Leg | -6/Data Miner | Free Prc. Energy Filter | -6/Data Miner | Free Tesla Bomb Launcher | -6/Data Miner | Free Centrium Wheel | -6/Data Miner | Free Imp. Force Field | -6/Data Miner | Free Phase Gun | -6/Data Miner | Free Imp. Coolant Injector | -6/Data Miner | Free Adv. Datajack | -6/Data Miner | Free Triangulator | -5/Extension | Z-intel Imp. Target Analyzer | -5/Extension | Z-intel Maul | -5/Extension | Z-intel Imp. Plasma Cutter | -5/Extension | Z-intel Terrain Scan Processor | -5/Extension | Z-intel Gyrokinetic Inverter | -5/Extension | Z-intel Imp. Terrain Scanner | -5/Extension | Z-intel KE Penetrator | -5/Extension | Z-intel Actuator Array | -5/Extension | Z-intel Arc Projector | -5/Extension | Z-intel Imp. Recalibrator | -5/Extension | Z-intel Enh. Gauss Cannon | -5/Extension | Z-intel Adv. Recoil Stabilizer | -5/Extension | Z-intel Datajack | -5/Extension | Z-intel Adv. Hacking Suite | -5/Extension | Z-intel Linear Gravjet | -5/Extension | Z-intel Robot Schematics ------------------ B-48 Gladiator | -7/Zion | Archive H-55 Commando | -7/Zion | Archive S-27 Virus | -7/Zion | Archive B-60 Warrior | -6/Data Miner | Free Y-64 Sentinel | -6/Data Miner | Free X-62 Marksman | -6/Data Miner | Free R-10 Processor | -6/Data Miner | Free G-50 Soldier | -6/Data Miner | Free G-67 Veteran | -6/Data Miner | Free Fabricated ------------ Imp. Plasma Cutter | x2 | -5/Factory | Preloaded Repaired ---------- Ionic Axe | 18% | -3/Research Studied --------- Carbon-fiber Leg | -8/Materials | Hacked Arm. Wheel | -6/Factory | Hacked Antigrav System | -3/Research | Hacked Alien Tech Used ----------------- None Achievements -------------- All Kinds Of Bad News Sprinter The Robot, The Myth, The Legend Challenges ------------ None Game ------ Seed TacticalElectronCyclogen Manual? 0 Play Time 04:01:47 Cumulative 389.4 hours Start 2025.11.07 @ 19:56:32 End 2025.11.08 @ 18:12:31 Sessions 5 Manual Loads 0 Difficulty Rogue Special Mode None Game No. 164 Rogue 93 Adventurer 68 Explorer 3 Win Type - Total 33 Types 19/2/3/4/3/0/0/0/0/2 Lore% 78 Gallery% 76 Achievement% 53 Wizard Run 0 Options --------- Layout 0 ASCII 0 Keyboard 0 Movement Numpad Keybinds 0 Fullscreen 1 Font 24/Smallcaps Map View 76x50 Zoom Use 0% Tactical HUD 1 Map Filters NONE Filters NONE Steam 1 RUN: f7def3a9-0ef5-43e4-b37e-cd34c6aef893